fUST/lending_fUST_20240805
["ID","MTS","AMOUNT","RATE_DAILY","PERIOD"]
[334243087,1722855952134,-500.0,0.00041095,31]
[334243088,1722855952180,-500.0,0.00041095,31]
[334243089,1722855952230,-500.0,0.00041095,31]
[334243090,1722855952282,-500.0,0.00041095,31]
[334243091,1722855952328,-804.3,0.00041095,31]
[334243092,1722855952377,-5988.52,0.00041095,60]
[334243093,1722855952423,-500.0,0.00041095,31]
[334243094,1722855952470,-5988.52,0.00041095,60]
[334243095,1722855952519,-5988.52,0.00041095,60]
[334243096,1722855952565,-500.0,0.00041095,31]
[334243097,1722855952616,-5988.52,0.00041095,60]
[334243098,1722855952668,-5988.52,0.00041095,60]
[334243099,1722855952719,-5988.52,0.00041095,60]
[334243100,1722855952766,-5988.52,0.00041095,60]
[334243101,1722855952812,-5988.52,0.00041095,60]
[334243102,1722855952860,-5988.52,0.00041095,60]
[334243103,1722855952907,-5988.52,0.00041095,60]
[334243104,1722855952954,-5988.52,0.00041095,60]
[334243105,1722855953003,-5988.52,0.00041095,60]
[334243106,1722855953048,-4630.0,0.00041095,31]
[334243107,1722855953093,-500.0,0.00041095,31]
[334243108,1722855953142,-1003.21,0.00041095,31]
[334243109,1722855953186,-767.0,0.00041095,31]
[334243110,1722855953228,-500.0,0.00041095,31]
[334243111,1722855953278,-500.0,0.00041095,31]
[334243112,1722855953323,-500.0,0.00041095,31]
[334243113,1722855953367,-1068.28,0.00041095,31]
[334243114,1722855953415,-500.0,0.00041095,31]
[334243115,1722855953466,-5988.52,0.00041642,60]
[334243116,1722855953511,-5988.52,0.00041642,60]
[334243117,1722855953556,-5988.52,0.00041642,60]
[334243118,1722855953604,-5988.52,0.00041642,60]
[334243119,1722855953653,-5988.52,0.00041642,60]
[334243120,1722855953700,-5988.52,0.00041642,60]
[334243121,1722855953753,-5988.52,0.00041642,60]
[334243122,1722855953804,-5988.52,0.00041642,60]
[334243123,1722855953853,-5988.52,0.00041642,60]
[334243124,1722855953904,-5988.52,0.00041642,60]
[334243125,1722855953954,-5988.52,0.00041642,60]
[334243126,1722855954005,-5988.56208555,0.00041642,60]
[334243127,1722855954052,-1011.48,0.00041643,31]
[334243128,1722855954100,-181.16744743,0.00041643,31]
[334243129,1722855954152,-502.12986428,0.00041643,31]
[334243130,1722855954201,-500.0,0.00041643,31]
[334243131,1722855954253,-500.0,0.00041643,31]
[334243132,1722855954302,-500.0,0.00041643,31]
[334243133,1722855954350,-500.0,0.00041643,31]
[334243134,1722855954399,-804.3,0.00041643,31]
[334243135,1722855954446,-500.0,0.00041643,31]
[334243136,1722855954497,-500.0,0.00041643,31]
[334243137,1722855954547,-4630.0,0.00041643,31]
[334243138,1722855954592,-500.0,0.00041643,31]
[334243139,1722855954638,-1003.21,0.00041643,31]
[334243140,1722855954683,-767.0,0.00041643,31]
[334243141,1722855954727,-500.0,0.00041643,31]
[334243142,1722855954773,-500.0,0.00041643,31]
[334243143,1722855954819,-294.224359,0.00041643,31]
[334243144,1722855954865,-1068.28,0.00041643,31]
[334243145,1722855954912,-1102.87,0.00042191,31]
[334243146,1722855954959,-640.04,0.00042191,31]
[334243147,1722855955005,-1011.48,0.00042191,31]
[334243148,1722855955051,-500.0,0.00042191,31]
[334243149,1722855955101,-500.0,0.00042191,31]
[334243150,1722855955146,-500.0,0.00042191,31]
[334243151,1722855955190,-500.0,0.00042191,31]
[334243152,1722855955236,-804.3,0.00042191,31]
[334243153,1722855955283,-500.0,0.00042191,31]
[334243154,1722855955331,-387.64443395,0.00042191,31]
[334243155,1722855955378,-4630.0,0.00042191,31]
[334243156,1722855955425,-500.0,0.00042191,31]
[334243157,1722855955470,-1003.21,0.00042191,31]
[334243158,1722855955516,-767.0,0.00042191,31]
[334243159,1722855955562,-500.0,0.00042191,31]
[334243160,1722855955609,-500.0,0.00042191,31]
[334243161,1722855955655,-1068.28,0.00042191,31]
[334243162,1722855955704,-500.0,0.00042739,31]
[334243163,1722855955889,-1102.87,0.00042739,31]
[334243164,1722855955937,-1011.48,0.00042739,31]
[334243165,1722855955982,-640.04,0.00042739,31]
[334243166,1722855956029,-225.09668857,0.00042739,31]
[334243167,1722855956076,-500.0,0.00042739,31]
[334243168,1722855956125,-500.0,0.00042739,31]
[334243169,1722855956172,-500.0,0.00042739,31]
[334243170,1722855956224,-804.3,0.00042739,31]
[334243171,1722855956275,-500.0,0.00042739,31]
[334243172,1722855956322,-4630.0,0.00042739,31]
[334243173,1722855956369,-500.0,0.00042739,31]
[334243174,1722855956417,-1003.21,0.00042739,31]
[334243175,1722855956464,-767.0,0.00042739,31]
[334243176,1722855956508,-500.0,0.00042739,31]
[334243177,1722855956553,-500.0,0.00042739,31]
[334243178,1722855956599,-150.5,0.0004277,120]
[334243179,1722855956646,-150.5,0.0004278,120]
[334243180,1722855956692,-150.5,0.0004279,120]
[334243181,1722855956739,-500.0,0.00043287,31]
[334243182,1722855956790,-1102.87,0.00043287,31]
[334243183,1722855956834,-1011.48,0.00043287,31]
[334243184,1722855956885,-640.04,0.00043287,31]
[334243185,1722855956933,-500.0,0.00043287,31]
[334243186,1722855956980,-500.0,0.00043287,31]
[334243187,1722855957028,-500.0,0.00043287,31]
[334243188,1722855957073,-500.0,0.00043287,31]
[334243189,1722855957119,-804.3,0.00043287,31]
[334243190,1722855957164,-4630.0,0.00043287,31]
[334243191,1722855957211,-500.0,0.00043287,31]
[334243192,1722855957257,-1003.21,0.00043287,31]
[334243193,1722855957302,-767.0,0.00043287,31]
[334243194,1722855957345,-500.0,0.00043287,31]
[334243195,1722855957389,-500.0,0.00043287,31]
[334243196,1722855957441,-1834.83273285,0.00043835,31]
[334243197,1722855957494,-500.0,0.00043835,31]
[334243198,1722855957539,-500.0,0.00043835,31]
[334243199,1722855957586,-500.0,0.00043835,31]
[334243200,1722855957634,-500.0,0.00043835,31]
[334243201,1722855957681,-767.28,0.00043835,31]
[334243202,1722855957729,-4015.88,0.00043835,31]
[334243203,1722855957780,-500.0,0.00043835,31]
[334243204,1722855957831,-500.0,0.00043835,31]
[334243205,1722855957880,-1014.51,0.00043835,31]
[334243206,1722855957926,-1174.29,0.00043835,31]
[334243207,1722855957975,-473.95801233,0.00043835,31]
[334243208,1722855958034,-754.85,0.00043835,31]
[334243209,1722855958087,-1374.17,0.00043835,31]
[334243210,1722855958141,-1031.24,0.00043835,31]
[334243211,1722855958196,-500.0,0.00043835,31]
[334243212,1722855958254,-500.0,0.00043835,31]
[334243213,1722855958304,-500.0,0.00043835,31]
[334243214,1722855958355,-670.71,0.00043835,31]
[334243215,1722855958402,-500.0,0.00043835,31]
[334243216,1722855958450,-2005.0,0.00043835,31]
[334243217,1722855958502,-500.0,0.00043835,31]
[334243218,1722855958551,-1974.46,0.00043835,31]
[334243219,1722855958600,-1304.72,0.00043835,31]
[334243220,1722855958647,-500.0,0.00043835,31]
[334243221,1722855958697,-385.60658798,0.00043835,31]
[334243222,1722855958751,-500.0,0.00043835,31]
[334243223,1722855958801,-500.0,0.00043835,31]
[334243224,1722855958849,-552.41,0.00043835,31]
[334243225,1722855958898,-939.28,0.00043835,31]
[334243226,1722855958946,-524.54,0.00043835,31]
[334243227,1722855958992,-500.0,0.00043835,31]
[334243228,1722855959046,-6176.67,0.00043835,31]
[334243229,1722855959096,-1355.54,0.00043835,31]
[334243230,1722855959149,-782.29,0.00043835,31]
[334243231,1722855959195,-820.99,0.00043835,31]
[334243232,1722855959241,-982.1,0.00043835,31]
[334243233,1722855959290,-500.0,0.00043835,31]
[334243234,1722855959336,-371.95020409,0.00043835,31]
[334243235,1722855959385,-1102.87,0.00043835,31]
[334243236,1722855959433,-1011.48,0.00043835,31]
[334243237,1722855959480,-640.04,0.00043835,31]
[334243238,1722855959528,-500.0,0.00043835,31]
[334243239,1722855959573,-500.0,0.00043835,31]
[334243240,1722855959619,-508.14878477,0.00043835,31]
[334243241,1722855959666,-500.0,0.00043835,31]
[334243242,1722855959712,-804.3,0.00043835,31]
[334243243,1722855959757,-4630.0,0.00043835,31]
[334243244,1722855959803,-500.0,0.00043835,31]
[334243245,1722855959849,-1003.21,0.00043835,31]
[334243246,1722855959896,-767.0,0.00043835,31]
[334243247,1722855959945,-500.0,0.00043835,31]
[334243248,1722855959992,-500.0,0.00043835,31]
[334243249,1722855960041,-151.0,0.00043863,120]
[334243250,1722855960091,-5000.0,0.00044,44]
[334243251,1722855960139,-599.0,0.00044,120]
[334243252,1722855960193,-500.0,0.00044,120]
[334243253,1722855960241,-154.76012181,0.00044,120]
[334243254,1722855960294,-150.0,0.00044,60]
[334243255,1722855960343,-400.0,0.00044,30]
[334243256,1722855960392,-500.0,0.00044383,31]
[334243257,1722855960440,-500.0,0.00044383,31]
[334243258,1722855960488,-500.0,0.00044383,31]
[334243259,1722855960539,-500.0,0.00044383,31]
[334243260,1722855960587,-648.07,0.00044383,31]
[334243261,1722855960634,-629.74,0.00044383,31]
[334243262,1722855960679,-549.06912892,0.00044383,31]
[334243263,1722855960727,-1276.5,0.00044383,31]
[334243264,1722855960901,-500.0,0.00044383,31]
[334243265,1722855960954,-556.09,0.00044383,31]
[334243266,1722855961006,-500.0,0.00044383,31]
[334243267,1722855961052,-500.0,0.00044383,31]
[334243268,1722855961102,-500.0,0.00044383,31]
[334243269,1722855961148,-500.0,0.00044383,31]
[334243270,1722855961195,-500.0,0.00044383,31]
[334243271,1722855961242,-500.0,0.00044383,31]
[334243272,1722855961295,-574.39,0.00044383,31]
[334243273,1722855961345,-595.43,0.00044383,31]
[334243274,1722855961392,-235.33219757,0.00044383,31]
[334243275,1722855961441,-500.0,0.00044383,31]
[334243276,1722855961488,-866.48,0.00044383,31]
[334243277,1722855961540,-500.0,0.00044383,31]
[334243278,1722855961588,-500.0,0.00044383,31]
[334243279,1722855961634,-500.0,0.00044383,31]
[334243280,1722855961685,-902.94,0.00044383,31]
[334243281,1722855961735,-500.0,0.00044383,31]
[334243282,1722855961791,-500.0,0.00044383,31]
[334243283,1722855961839,-500.0,0.00044383,31]
[334243284,1722855961885,-500.0,0.00044383,31]
[334243285,1722855961933,-500.0,0.00044383,31]
[334243286,1722855961979,-500.0,0.00044383,31]
[334243287,1722855962025,-500.0,0.00044383,31]
[334243288,1722855962070,-943.74,0.00044383,31]
[334243289,1722855962118,-500.0,0.00044383,31]
[334243290,1722855962166,-500.0,0.00044383,31]
[334243291,1722855962213,-584.69,0.00044383,31]
[334243292,1722855962261,-1305.1,0.00044383,31]
[334243293,1722855962310,-500.0,0.00044383,31]
[334243294,1722855962358,-553.49,0.00044383,31]
[334243295,1722855962405,-500.0,0.00044383,31]
[334243296,1722855962454,-500.0,0.00044383,31]
[334243297,1722855962507,-500.0,0.00044383,31]
[334243298,1722855962555,-898.41,0.00044383,31]
[334243299,1722855962605,-500.0,0.00044383,31]
[334243300,1722855962652,-500.0,0.00044383,31]
[334243301,1722855962701,-500.0,0.00044383,31]
[334243302,1722855962754,-500.0,0.00044383,31]
[334243303,1722855962804,-613.99,0.00044383,31]
[334243304,1722855962853,-500.0,0.00044383,31]
[334243305,1722855962899,-530.57,0.00044383,31]
[334243306,1722855962949,-500.0,0.00044383,31]
[334243307,1722855963003,-616.76,0.00044383,31]
[334243308,1722855963061,-500.0,0.00044383,31]
[334243309,1722855963110,-694.59,0.00044383,31]
[334243310,1722855963160,-1013.28,0.00044383,31]
[334243311,1722855963211,-500.0,0.00044383,31]
[334243312,1722855963262,-500.0,0.00044383,31]
[334243313,1722855963316,-500.0,0.00044383,31]
[334243314,1722855963376,-1321.46,0.00044383,31]
[334243315,1722855963443,-473.82035833,0.00044383,31]
[334243316,1722855963512,-492.21705848,0.00044383,31]
[334243317,1722855963578,-615.54,0.00044383,31]
[334243318,1722855963645,-952.95,0.00044383,31]
[334243319,1722855963708,-538.82,0.00044383,31]
[334243320,1722855963774,-500.0,0.00044383,31]
[334243321,1722855963833,-500.0,0.00044383,31]
[334243322,1722855963897,-500.0,0.00044383,31]
[334243323,1722855963963,-500.0,0.00044383,31]
[334243324,1722855964027,-702.68,0.00044383,31]
[334243325,1722855964083,-500.0,0.00044383,31]
[334243326,1722855964146,-1814.25,0.00044383,31]
[334243327,1722855964204,-753.6,0.00044383,31]
[334243328,1722855964261,-1640.04,0.00044383,31]
[334243329,1722855964319,-500.0,0.00044383,31]
[334243330,1722855964377,-500.0,0.00044383,31]
[334243331,1722855964435,-500.0,0.00044383,31]
[334243332,1722855964493,-505.33,0.00044383,31]
[334243333,1722855964555,-269.17806468,0.00044383,31]
[334243334,1722855964615,-500.0,0.00044383,31]
[334243335,1722855964672,-790.04,0.00044383,31]
[334243336,1722855964732,-1310.1,0.00044383,31]
[334243337,1722855964796,-994.56,0.00044383,31]
[334243338,1722855964853,-549.92,0.00044383,31]
[334243339,1722855964914,-500.0,0.00044383,31]
[334243340,1722855964973,-500.0,0.00044383,31]
[334243341,1722855965032,-908.96,0.00044383,31]
[334243342,1722855965089,-500.0,0.00044383,31]
[334243343,1722855965157,-727.99,0.00044383,31]
[334243344,1722855965213,-500.0,0.00044383,31]
[334243345,1722855965266,-500.0,0.00044383,31]
[334243346,1722855965316,-500.0,0.00044383,31]
[334243347,1722855965367,-9665.63,0.00044383,31]
[334243348,1722855965417,-857.1,0.00044383,31]
[334243349,1722855965474,-500.0,0.00044383,31]
[334243350,1722855965521,-500.0,0.00044383,31]
[334243351,1722855965570,-803.81,0.00044383,31]
[334243352,1722855965617,-825.94,0.00044383,31]
[334243353,1722855965662,-12236.57,0.00044383,120]
[334243354,1722855965709,-500.0,0.00044383,31]
[334243355,1722855965758,-500.0,0.00044383,31]
[334243356,1722855965806,-3748.41,0.00044383,31]
[334243357,1722855965854,-500.0,0.00044383,31]
[334243358,1722855965903,-248.04395445,0.00044383,31]
[334243359,1722855965952,-2909.32,0.00044383,31]
[334243360,1722855966005,-500.0,0.00044383,31]
[334243361,1722855966053,-500.0,0.00044383,31]
[334243362,1722855966100,-500.0,0.00044383,31]
[334243363,1722855966419,-767.28,0.00044383,31]
[334243364,1722855966467,-500.0,0.00044383,31]
[334243365,1722855966514,-4015.88,0.00044383,31]
[334243366,1722855966562,-500.0,0.00044383,31]
[334243367,1722855966610,-500.0,0.00044383,31]
[334243368,1722855966660,-1014.51,0.00044383,31]
[334243369,1722855966707,-1174.29,0.00044383,31]
[334243370,1722855966762,-754.85,0.00044383,31]
[334243371,1722855966810,-1374.17,0.00044383,31]
[334243372,1722855966856,-1031.24,0.00044383,31]
[334243373,1722855966902,-500.0,0.00044383,31]
[334243374,1722855966951,-500.0,0.00044383,31]
[334243375,1722855967005,-500.0,0.00044383,31]
[334243376,1722855967055,-670.71,0.00044383,31]
[334243377,1722855967103,-500.0,0.00044383,31]
[334243378,1722855967152,-2005.0,0.00044383,31]
[334243379,1722855967199,-500.0,0.00044383,31]
[334243380,1722855967249,-1974.46,0.00044383,31]
[334243381,1722855967297,-1304.72,0.00044383,31]
[334243382,1722855967346,-500.0,0.00044383,31]
[334243383,1722855967398,-500.0,0.00044383,31]
[334243384,1722855967449,-500.0,0.00044383,31]
[334243385,1722855967505,-552.41,0.00044383,31]
[334243386,1722855967556,-939.28,0.00044383,31]
[334243387,1722855967602,-524.54,0.00044383,31]
[334243388,1722855967650,-500.0,0.00044383,31]
[334243389,1722855967699,-6176.67,0.00044383,31]
[334243390,1722855967752,-1355.54,0.00044383,31]
[334243391,1722855967799,-782.29,0.00044383,31]
[334243392,1722855967849,-820.99,0.00044383,31]
[334243393,1722855967900,-982.1,0.00044383,31]
[334243394,1722855967948,-500.0,0.00044383,31]
[334243395,1722855968006,-1102.87,0.00044383,31]
[334243396,1722855968056,-1011.48,0.00044383,31]
[334243397,1722855968109,-640.04,0.00044383,31]
[334243398,1722855968160,-500.0,0.00044383,31]
[334243399,1722855968209,-500.0,0.00044383,31]
[334243400,1722855968261,-500.0,0.00044383,31]
[334243401,1722855968310,-804.3,0.00044383,31]
[334243402,1722855968360,-4630.0,0.00044383,31]
[334243403,1722855968412,-500.0,0.00044383,31]
[334243404,1722855968461,-1003.21,0.00044383,31]
[334243405,1722855968518,-767.0,0.00044383,31]
[334243406,1722855968571,-500.0,0.00044383,31]
[334243407,1722855968627,-500.0,0.00044383,31]
[334243408,1722855968681,-151.0,0.00044466,120]
[334243409,1722855968733,-3160.45770161,0.000446,60]
[334243410,1722855968794,-62856.24369826,0.000447,120]
[334243411,1722855968846,-578.51413382,0.0004484,120]
[334243412,1722855968896,-5000.0,0.000449,120]
[334243413,1722855968945,-10000.0,0.000449,120]
[334243414,1722855968995,-500.0,0.00044931,31]
[334243415,1722855969054,-500.0,0.00044931,31]
[334243416,1722855969108,-256.60547983,0.00044931,31]
[334243417,1722855969163,-500.0,0.00044931,31]
[334243418,1722855969213,-648.07,0.00044931,31]
[334243419,1722855969264,-629.74,0.00044931,31]
[334243420,1722855969317,-1276.5,0.00044931,31]
[334243421,1722855969366,-500.0,0.00044931,31]
[334243422,1722855969413,-556.09,0.00044931,31]
[334243423,1722855969462,-500.0,0.00044931,31]
[334243424,1722855969510,-500.0,0.00044931,31]
[334243425,1722855969557,-500.0,0.00044931,31]
[334243426,1722855969606,-500.0,0.00044931,31]
[334243427,1722855969656,-500.0,0.00044931,31]
[334243428,1722855969704,-500.0,0.00044931,31]
[334243429,1722855969755,-574.39,0.00044931,31]
[334243430,1722855969809,-595.43,0.00044931,31]
[334243431,1722855969856,-500.0,0.00044931,31]
[334243432,1722855969904,-866.48,0.00044931,31]
[334243433,1722855969952,-500.0,0.00044931,31]
[334243434,1722855970002,-500.0,0.00044931,31]
[334243435,1722855970046,-500.0,0.00044931,31]
[334243436,1722855970090,-902.94,0.00044931,31]
[334243437,1722855970138,-500.0,0.00044931,31]
[334243438,1722855970187,-500.0,0.00044931,31]
[334243439,1722855970232,-534.34194701,0.00044931,31]
[334243440,1722855970282,-500.0,0.00044931,31]
[334243441,1722855970327,-500.0,0.00044931,31]
[334243442,1722855970372,-500.0,0.00044931,31]
[334243443,1722855970417,-500.0,0.00044931,31]
[334243444,1722855970464,-943.74,0.00044931,31]
[334243445,1722855970511,-500.0,0.00044931,31]
[334243446,1722855970557,-500.0,0.00044931,31]
[334243447,1722855970602,-584.69,0.00044931,31]
[334243448,1722855970647,-1305.1,0.00044931,31]
[334243449,1722855970693,-500.0,0.00044931,31]
[334243450,1722855970739,-553.49,0.00044931,31]
[334243451,1722855970789,-500.0,0.00044931,31]
[334243452,1722855970835,-500.0,0.00044931,31]
[334243453,1722855970882,-500.0,0.00044931,31]
[334243454,1722855970929,-898.41,0.00044931,31]
[334243455,1722855970976,-500.0,0.00044931,31]
[334243456,1722855971021,-500.0,0.00044931,31]
[334243457,1722855971066,-500.0,0.00044931,31]
[334243458,1722855971111,-613.99,0.00044931,31]
[334243459,1722855971158,-500.0,0.00044931,31]
[334243460,1722855971206,-530.57,0.00044931,31]
[334243461,1722855971373,-500.0,0.00044931,31]
[334243462,1722855971418,-616.76,0.00044931,31]
[334243463,1722855971465,-500.0,0.00044931,31]
[334243464,1722855971509,-694.59,0.00044931,31]
[334243465,1722855971552,-1013.28,0.00044931,31]
[334243466,1722855971600,-500.0,0.00044931,31]
[334243467,1722855971651,-500.0,0.00044931,31]
[334243468,1722855971700,-500.0,0.00044931,31]
[334243469,1722855971747,-1321.46,0.00044931,31]
[334243470,1722855971797,-615.54,0.00044931,31]
[334243471,1722855971840,-952.95,0.00044931,31]
[334243472,1722855971888,-538.82,0.00044931,31]
[334243473,1722855971937,-500.0,0.00044931,31]
[334243474,1722855971986,-233.18478093,0.00044931,31]
[334243475,1722855972041,-500.0,0.00044931,31]
[334243476,1722855972088,-500.0,0.00044931,31]
[334243477,1722855972138,-702.68,0.00044931,31]
[334243478,1722855972185,-500.0,0.00044931,31]
[334243479,1722855972230,-1814.25,0.00044931,31]
[334243480,1722855972276,-753.6,0.00044931,31]
[334243481,1722855972323,-1640.04,0.00044931,31]
[334243482,1722855972368,-500.0,0.00044931,31]
[334243483,1722855972413,-500.0,0.00044931,31]
[334243484,1722855972457,-500.0,0.00044931,31]
[334243485,1722855972507,-505.33,0.00044931,31]
[334243486,1722855972552,-500.0,0.00044931,31]
[334243487,1722855972597,-790.04,0.00044931,31]
[334243488,1722855972642,-1310.1,0.00044931,31]
[334243489,1722855972689,-994.56,0.00044931,31]
[334243490,1722855972735,-549.92,0.00044931,31]
[334243491,1722855972784,-500.0,0.00044931,31]
[334243492,1722855972827,-500.0,0.00044931,31]
[334243493,1722855972874,-908.96,0.00044931,31]
[334243494,1722855972920,-500.0,0.00044931,31]
[334243495,1722855972967,-727.99,0.00044931,31]
[334243496,1722855973014,-500.0,0.00044931,31]
[334243497,1722855973058,-642.09670699,0.00044931,31]
[334243498,1722855973101,-500.0,0.00044931,31]
[334243499,1722855973145,-9665.63,0.00044931,31]
[334243500,1722855973189,-857.1,0.00044931,31]
[334243501,1722855973235,-500.0,0.00044931,31]
[334243502,1722855973282,-500.0,0.00044931,31]
[334243503,1722855973327,-803.81,0.00044931,31]
[334243504,1722855973368,-825.94,0.00044931,31]
[334243505,1722855973409,-12236.57,0.00044931,120]
[334243506,1722855973452,-546.82642054,0.00044931,31]
[334243507,1722855973494,-500.0,0.00044931,31]
[334243508,1722855973543,-3748.41,0.00044931,31]
[334243509,1722855973583,-500.0,0.00044931,31]
[334243510,1722855973627,-2909.32,0.00044931,31]
[334243511,1722855973670,-500.0,0.00044931,31]
[334243512,1722855973715,-500.0,0.00044931,31]
[334243513,1722855973760,-500.0,0.00044931,31]
[334243514,1722855973804,-500.0,0.00044931,31]
[334243515,1722855973850,-767.28,0.00044931,31]
[334243516,1722855973898,-4015.88,0.00044931,31]
[334243517,1722855973946,-500.0,0.00044931,31]
[334243518,1722855973993,-500.0,0.00044931,31]
[334243519,1722855974045,-1014.51,0.00044931,31]
[334243520,1722855974092,-1174.29,0.00044931,31]
[334243521,1722855974143,-754.85,0.00044931,31]
[334243522,1722855974192,-1374.17,0.00044931,31]
[334243523,1722855974239,-1031.24,0.00044931,31]
[334243524,1722855974287,-500.0,0.00044931,31]
[334243525,1722855974336,-500.0,0.00044931,31]
[334243526,1722855974383,-500.0,0.00044931,31]
[334243527,1722855974427,-670.71,0.00044931,31]
[334243528,1722855974471,-500.0,0.00044931,31]
[334243529,1722855974517,-2005.0,0.00044931,31]
[334243530,1722855974562,-500.0,0.00044931,31]
[334243531,1722855974607,-1974.46,0.00044931,31]
[334243532,1722855974654,-1304.72,0.00044931,31]
[334243533,1722855974701,-500.0,0.00044931,31]
[334243534,1722855974746,-500.0,0.00044931,31]
[334243535,1722855974798,-500.0,0.00044931,31]
[334243536,1722855974845,-552.41,0.00044931,31]
[334243537,1722855974893,-939.28,0.00044931,31]
[334243538,1722855974943,-524.54,0.00044931,31]
[334243539,1722855974992,-500.0,0.00044931,31]
[334243540,1722855975042,-6176.67,0.00044931,31]
[334243541,1722855975088,-1355.54,0.00044931,31]
[334243542,1722855975138,-782.29,0.00044931,31]
[334243543,1722855975188,-820.99,0.00044931,31]
[334243544,1722855975235,-982.1,0.00044931,31]
[334243545,1722855975289,-500.0,0.00044931,31]
[334243546,1722855975336,-1102.87,0.00044931,31]
[334243547,1722855975384,-1011.48,0.00044931,31]
[334243548,1722855975432,-640.04,0.00044931,31]
[334243549,1722855975480,-500.0,0.00044931,31]
[334243550,1722855975527,-500.0,0.00044931,31]
[334243551,1722855975576,-500.0,0.00044931,31]
[334243552,1722855975632,-804.3,0.00044931,31]
[334243553,1722855975692,-4630.0,0.00044931,31]
[334243554,1722855975742,-1003.21,0.00044931,31]
[334243555,1722855975794,-429.7164921,0.00044931,31]
[334243556,1722855975841,-767.0,0.00044931,31]
[334243557,1722855975889,-500.0,0.00044931,31]
[334243558,1722855975937,-500.0,0.00044931,31]
[334243559,1722855975987,-5000.0,0.00045,45]
[334243560,1722855976037,-2099.7,0.00045,30]
[334243561,1722855976085,-10000.0,0.00045,120]
[334243562,1722855976133,-893.0,0.00045,60]
[334243563,1722855976180,-175.96199472,0.00045,120]
[334243564,1722855976227,-5998.85595422,0.00045,120]
[334243565,1722855976410,-20037.92407081,0.00045,120]
[334243566,1722855976462,-12212.99261806,0.00045,30]
[334243567,1722855976513,-2002.27042142,0.00045,120]
[334243568,1722855976560,-1501.0,0.00045,40]
[334243569,1722855976607,-200.0,0.00045,60]
[334243570,1722855976652,-1000.0,0.00045,45]
[334243571,1722855976697,-517.56,0.00045,30]
[334243572,1722855976746,-8042.55,0.00045,30]
[334243573,1722855976799,-151.0,0.00045123,120]
[334243574,1722855976848,-500.0,0.00045479,31]
[334243575,1722855976896,-500.0,0.00045479,31]
[334243576,1722855976942,-500.0,0.00045479,31]
[334243577,1722855976989,-648.07,0.00045479,31]
[334243578,1722855977035,-629.74,0.00045479,31]
[334243579,1722855977082,-1276.5,0.00045479,31]
[334243580,1722855977127,-364.16891852,0.00045479,31]
[334243581,1722855977173,-556.09,0.00045479,31]
[334243582,1722855977222,-500.0,0.00045479,31]
[334243583,1722855977268,-500.0,0.00045479,31]
[334243584,1722855977313,-500.0,0.00045479,31]
[334243585,1722855977359,-500.0,0.00045479,31]
[334243586,1722855977406,-500.0,0.00045479,31]